fUST/lending_fUST_20240725
["ID","MTS","AMOUNT","RATE_DAILY","PERIOD"]
[333144191,1721886644600,-485.26026358,0.00013698,2]
[333144193,1721886644611,-501.93587151,0.00013698,2]
[333144195,1721886644622,-3477.13,0.00013698,2]
[333144197,1721886644633,-500.0,0.00013698,2]
[333144199,1721886644644,-500.0,0.00013698,2]
[333144201,1721886644654,-177.15609077,0.00013698,2]
[333144203,1721886644665,-1782.94,0.00013698,2]
[333144205,1721886644674,-500.0,0.00013698,2]
[333144207,1721886644684,-805.45,0.00013698,2]
[333144209,1721886644693,-500.0,0.00013698,2]
[333144211,1721886644704,-500.0,0.00013698,2]
[333144213,1721886644713,-752.54,0.00013698,2]
[333144215,1721886644722,-500.0,0.00013698,2]
[333144217,1721886644733,-500.0,0.00013698,2]
[333144220,1721886644745,-1516.5,0.00013698,2]
[333144222,1721886644755,-3472.88,0.00013698,2]
[333144224,1721886644764,-500.0,0.00013698,2]
[333144226,1721886644774,-249.959729,0.00013698,2]
[333144228,1721886644784,-249.959729,0.00013698,2]
[333144230,1721886644793,-249.959729,0.00013698,2]
[333144232,1721886644803,-645.69,0.00013698,2]
[333144234,1721886644812,-249.959729,0.00013698,2]
[333144236,1721886644823,-249.959729,0.00013698,2]
[333144238,1721886644834,-994.84,0.00013698,2]
[333144240,1721886644845,-249.959729,0.00013698,2]
[333144242,1721886644855,-249.959729,0.00013698,2]
[333144244,1721886644866,-249.959729,0.00013698,2]
[333144246,1721886644875,-249.959729,0.00013698,2]
[333144248,1721886644883,-1502.17,0.00013698,2]
[333144250,1721886644893,-249.959729,0.00013698,2]
[333144252,1721886644903,-249.959729,0.00013698,2]
[333144254,1721886644913,-249.959729,0.00013698,2]
[333144256,1721886644923,-4269.88,0.00013698,2]
[333144258,1721886644932,-500.0,0.00013698,2]
[333144259,1721886644941,-249.959729,0.00013698,2]
[333144262,1721886644952,-249.959729,0.00013698,2]
[333144264,1721886644961,-500.0,0.00013698,2]
[333144266,1721886644971,-500.0,0.00013698,2]
[333144268,1721886644981,-500.0,0.00013698,2]
[333144269,1721886644990,-500.4101871,0.00013698,2]
[333144272,1721886645002,-151.0,0.00013698,2]
[333144274,1721886645012,-151.0,0.00013698,2]
[333144276,1721886645022,-500.0,0.00013698,2]
[333144278,1721886645031,-1299.03,0.00013698,2]
[333144280,1721886645040,-151.0,0.00013698,2]
[333144282,1721886645049,-151.0,0.00013698,2]
[333144283,1721886645059,-151.0,0.00013698,2]
[333144285,1721886645068,-151.0,0.00013698,2]
[333144287,1721886645078,-151.0,0.00013698,2]
[333144289,1721886645088,-500.0,0.00013698,2]
[333144291,1721886645098,-500.0,0.00013698,2]
[333144293,1721886645108,-151.0,0.00013698,2]
[333144295,1721886645120,-151.0,0.00013698,2]
[333144297,1721886645129,-151.0,0.00013698,2]
[333144299,1721886645139,-500.0,0.00013698,2]
[333144301,1721886645148,-151.0,0.00013698,2]
[333144304,1721886645157,-151.0,0.00013698,2]
[333144306,1721886645167,-151.0,0.00013698,2]
[333144308,1721886645177,-151.608222,0.00013698,2]
[333144311,1721886645186,-500.0,0.00013698,2]
[333144313,1721886645195,-13813.08,0.00013698,2]
[333144315,1721886645205,-375.46728576,0.00013698,2]
[333144317,1721886645214,-13813.08,0.00013698,2]
[333144320,1721886645224,-500.0,0.00013698,2]
[333144338,1721886645363,-13813.08,0.00013698,2]
[333144340,1721886645375,-13813.08,0.00013698,2]
[333144342,1721886645385,-13813.08,0.00013698,2]
[333144344,1721886645396,-13813.08,0.00013698,2]
[333144346,1721886645406,-13813.08,0.00013698,2]
[333144348,1721886645416,-500.0,0.00013698,2]
[333144350,1721886645425,-13813.08,0.00013698,2]
[333144352,1721886645434,-13813.08,0.00013698,2]
[333144354,1721886645444,-13813.08,0.00013698,2]
[333144356,1721886645454,-5326.43871732,0.00013698,2]
[333144432,1721886646494,-244.45286324,9.038e-05,2]
[333144434,1721886646507,-472.63079258,9.999e-05,2]
[333144436,1721886646518,-21.17929929,9.999e-05,2]
[333144438,1721886646528,-1024.76070071,0.00013698,2]
[333144440,1721886646539,-1129.02255697,0.00013698,2]
[333144442,1721886646550,-474.05031124,0.00013698,2]
[333144444,1721886646562,-5858.80771376,0.00013698,2]
[333144446,1721886646571,-657.72,0.00013698,2]
[333144448,1721886646582,-13813.08,0.00013698,2]
[333144450,1721886646593,-13813.08,0.00013698,2]
[333144452,1721886646605,-13813.08,0.00013698,2]
[333144454,1721886646616,-500.0,0.00013698,2]
[333144456,1721886646627,-13813.08,0.00013698,2]
[333144458,1721886646638,-13813.08,0.00013698,2]
[333144460,1721886646648,-13813.08,0.00013698,2]
[333144462,1721886646658,-13813.08,0.00013698,2]
[333144464,1721886646669,-13813.08,0.00013698,2]
[333144466,1721886646678,-13813.08,0.00013698,2]
[333144468,1721886646688,-13813.08,0.00013698,2]
[333144470,1721886646698,-12484.97373883,0.00013698,2]
[333144494,1721886646924,-1328.10626117,0.00013698,2]
[333144495,1721886646934,-1865.99891883,0.00013698,2]
[333144535,1721886647809,-226.7,0.00010959,2]
[333144536,1721886647819,-11947.08108117,0.00013698,2]
[333144537,1721886647830,-500.0,0.00013698,2]
[333144538,1721886647840,-13813.23289666,0.00013698,2]
[333144539,1721886647852,-885.65,0.00013698,2]
[333144540,1721886647862,-505.89250674,0.00013698,2]
[333144541,1721886647872,-501.81975643,0.00013698,2]
[333144542,1721886647881,-500.0,0.00013698,2]
[333144543,1721886647890,-500.15694005,0.00013698,2]
[333144544,1721886647901,-500.0,0.00013698,2]
[333144545,1721886647910,-514.38798571,0.00013698,2]
[333144546,1721886647921,-500.0,0.00013698,2]
[333144547,1721886647931,-1309.13194751,0.00013698,2]
[333144791,1721887832816,-199.8688162,8.561e-05,2]
[333144792,1721887832830,-200.0,8.57e-05,2]
[333144793,1721887832840,-200.0,8.57e-05,2]
[333144795,1721887832852,-199.8688162,8.647e-05,2]
[333144797,1721887832863,-350.0,8.786e-05,2]
[333144799,1721887832873,-300.0,9.444e-05,2]
[333144801,1721887832883,-960.57260037,9.445e-05,2]
[333144802,1721887832895,-1072.58812779,9.445e-05,2]
[333145307,1721887838635,-22866.83927184,9.445e-05,2]
[333145309,1721887838647,-1551.68275376,9.701e-05,2]
[333145311,1721887838657,-400.0,9.94e-05,2]
[333145313,1721887838667,-200.0,9.94e-05,2]
[333145315,1721887838677,-154.74467129,9.999e-05,2]
[333145317,1721887838686,-154.71377951,9.999e-05,2]
[333145319,1721887838697,-375.7190477,9.999e-05,2]
[333145321,1721887838706,-180.43278137,9.999e-05,2]
[333145323,1721887838716,-159.32816083,9.999e-05,2]
[333145325,1721887838726,-341.67813281,9.999e-05,2]
[333145327,1721887838736,-941.81566876,9.999e-05,2]
[333145329,1721887838745,-403.39616838,9.999e-05,2]
[333145331,1721887838755,-254.00088748,9.999e-05,2]
[333145333,1721887838764,-600.34409866,9.999e-05,2]
[333145335,1721887838773,-404.41023413,9.999e-05,2]
[333145337,1721887838783,-493.81009187,9.999e-05,2]
[333145339,1721887838794,-459.2503171,9.999e-05,2]
[333145341,1721887838805,-435.790714,9.999e-05,2]
[333145343,1721887838814,-154.71377951,9.999e-05,2]
[333145346,1721887838824,-726.90527473,9.999e-05,2]
[333145348,1721887838834,-342.88409801,9.999e-05,2]
[333145350,1721887838844,-240.59744191,9.999e-05,2]
[333145352,1721887838856,-155.0752819,9.999e-05,2]
[333145354,1721887838865,-632.05206367,9.999e-05,2]
[333145356,1721887838876,-201.30530872,9.999e-05,2]
[333145358,1721887838887,-968.29265867,9.999e-05,2]
[333145360,1721887838896,-157.67039442,9.999e-05,2]
[333145362,1721887838906,-160.02872969,9.999e-05,2]
[333145364,1721887838917,-288.28494131,9.999e-05,2]
[333145366,1721887838926,-248.87416602,9.999e-05,2]
[333145368,1721887838939,-259.19116163,9.999e-05,2]
[333145370,1721887838949,-542.61757791,9.999e-05,2]
[333145372,1721887838959,-196.30125481,9.999e-05,2]
[333145374,1721887838968,-196.30125481,9.999e-05,2]
[333145376,1721887838977,-287.53104938,0.0001,2]
[333145378,1721887838987,-154.71377951,0.0001,2]
[333145380,1721887838996,-154.71377951,0.0001,2]
[333145382,1721887839006,-250.0,0.00010031,2]
[333145384,1721887839015,-250.0,0.00010058,2]
[333145386,1721887839026,-250.0,0.00010086,2]
[333145388,1721887839035,-2737.1090192,0.00010093,2]
[333145390,1721887839045,-250.0,0.00010113,2]
[333145392,1721887839054,-250.0,0.00010141,2]
[333145394,1721887839064,-250.0,0.00010168,2]
[333145396,1721887839074,-250.0,0.00010196,2]
[333145397,1721887839087,-250.0,0.00010223,2]
[333145398,1721887839096,-250.0,0.00010251,2]
[333145399,1721887839108,-250.0,0.00010278,2]
[333145400,1721887839117,-250.0,0.00010306,2]
[333145401,1721887839127,-250.0,0.00010333,2]
[333145403,1721887839135,-250.0,0.00010361,2]
[333145405,1721887839146,-250.0,0.00010388,2]
[333145407,1721887839156,-420.0,0.00010389,2]
[333145409,1721887839165,-250.0,0.00010416,2]
[333145411,1721887839175,-250.0,0.00010443,2]
[333145413,1721887839184,-250.0,0.00010471,2]
[333145415,1721887839194,-250.0,0.00010498,2]
[333145417,1721887839203,-250.0,0.00010526,2]
[333145420,1721887839214,-250.0,0.00010553,2]
[333145422,1721887839224,-188.91,0.00010959,2]
[333145424,1721887839233,-587.0,0.00011428,2]
[333145426,1721887839243,-600.0,0.00011717,2]
[333145428,1721887839252,-823.0,0.0001257,2]
[333145430,1721887839262,-153.0,0.00012646,2]
[333145432,1721887839271,-1801.46119905,0.000129,2]
[333145434,1721887839281,-1801.461199,0.000129,2]
[333145436,1721887839290,-1801.461199,0.000129,2]
[333145438,1721887839300,-620.08257681,0.00013076,2]
[333145440,1721887839309,-200.0,0.00013425,2]
[333145442,1721887839319,-150.0,0.00013478,2]
[333145444,1721887839329,-367.51233122,0.0001355,2]
[333145446,1721887839339,-263.9559008,0.00013561,2]
[333145448,1721887839348,-2000.0,0.00013588,2]
[333145450,1721887839357,-79323.9200515,0.0001359,2]
[333145452,1721887839367,-2553.97324366,0.00013598,2]
[333145454,1721887839377,-200.0,0.00013598,2]
[333145456,1721887839386,-150.112233,0.000136,2]
[333145458,1721887839396,-88302.829277,0.000136,2]
[333145460,1721887839406,-150.112233,0.000136,2]
[333145462,1721887839415,-150.112233,0.000136,2]
[333145464,1721887839424,-150.112233,0.000136,2]
[333145466,1721887839434,-150.112233,0.000136,2]
[333145468,1721887839443,-150.112233,0.000136,2]
[333145470,1721887839454,-150.112233,0.000136,2]
[333145472,1721887839464,-150.112233,0.000136,2]
[333145474,1721887839475,-3393.83801867,0.000136,2]
[333145476,1721887839485,-5306.88604622,0.0001367,2]
[333145478,1721887839494,-198309.800129,0.00013688,2]
[333145480,1721887839512,-800.0,0.00013689,2]
[333145482,1721887839521,-226.084037,0.00013698,2]
[333145485,1721887839544,-218.4639533,0.00013698,2]
[333145487,1721887839567,-3306.16227911,0.00013698,2]
[333145489,1721887839579,-16274.21667808,0.00013698,2]
[333145491,1721887839602,-300.0,0.00013698,2]
[333145493,1721887839612,-500.0,0.00013698,2]
[333145495,1721887839639,-500.0,0.00013698,2]
[333145497,1721887839654,-500.0,0.00013698,2]
[333145499,1721887839671,-500.0,0.00013698,2]
[333145501,1721887839684,-500.0,0.00013698,2]
[333145503,1721887839694,-358.88,0.00013698,2]
[333145505,1721887839703,-305.30262879,0.00013698,2]
[333145507,1721887839712,-245.96477279,0.00013698,2]
[333145509,1721887839721,-1081.21,0.00013698,2]
[333145511,1721887839730,-529.17,0.00013698,2]
[333145513,1721887839739,-504.12761599,0.00013698,2]
[333145515,1721887839749,-500.0,0.00013698,2]
[333145517,1721887839758,-397.17777987,0.00013698,2]
[333145519,1721887839767,-315.68744378,0.00013698,2]
[333145521,1721887839777,-500.0,0.00013698,2]
[333145524,1721887839786,-522.51,0.00013698,2]
[333145526,1721887839795,-500.0,0.00013698,2]
[333145529,1721887839805,-500.0,0.00013698,2]
[333145531,1721887839814,-500.0,0.00013698,2]
[333145533,1721887839823,-500.0,0.00013698,2]
[333145535,1721887839834,-228.20082559,0.00013698,2]
[333145537,1721887839843,-500.0,0.00013698,2]
[333145539,1721887839855,-648.30800772,0.00013698,2]
[333145541,1721887839865,-500.0,0.00013698,2]
[333145543,1721887839875,-500.0,0.00013698,2]
[333145545,1721887839884,-504.34113146,0.00013698,2]
[333145547,1721887839894,-573.90241501,0.00013698,2]
[333145549,1721887839905,-500.0,0.00013698,2]
[333145551,1721887839914,-500.0,0.00013698,2]
[333145553,1721887839924,-500.0,0.00013698,2]
[333145556,1721887839935,-500.0,0.00013698,2]
[333145560,1721887839944,-194.22174648,0.00013698,2]
[333145563,1721887839954,-500.0,0.00013698,2]
[333145564,1721887839964,-500.0,0.00013698,2]
[333145567,1721887839974,-513.09194325,0.00013698,2]
[333145570,1721887839983,-500.0,0.00013698,2]
[333145573,1721887839992,-577.36044152,0.00013698,2]
[333145575,1721887840003,-500.0,0.00013698,2]
[333145578,1721887840012,-569.70964056,0.00013698,2]
[333145581,1721887840022,-557.438828,0.00013698,2]
[333145584,1721887840031,-177.56488755,0.00013698,2]
[333145586,1721887840040,-500.0,0.00013698,2]
[333145588,1721887840050,-500.0,0.00013698,2]
[333145590,1721887840059,-500.0,0.00013698,2]
[333145592,1721887840068,-500.0,0.00013698,2]
[333145594,1721887840078,-500.0,0.00013698,2]
[333145596,1721887840088,-500.0,0.00013698,2]
[333145598,1721887840098,-500.0,0.00013698,2]
[333145600,1721887840107,-500.0,0.00013698,2]
[333145602,1721887840117,-500.0,0.00013698,2]
[333145604,1721887840126,-500.0,0.00013698,2]
[333145606,1721887840135,-500.0,0.00013698,2]
[333145608,1721887840145,-210.27,0.00013698,2]
[333145610,1721887840155,-500.0,0.00013698,2]
[333145612,1721887840164,-500.0,0.00013698,2]
[333145614,1721887840174,-500.0,0.00013698,2]
[333145616,1721887840184,-504.53112401,0.00013698,2]
[333145618,1721887840193,-282.25280295,0.00013698,2]
[333145620,1721887840203,-500.0,0.00013698,2]
[333145623,1721887840213,-500.0,0.00013698,2]
[333145625,1721887840222,-500.0,0.00013698,2]
[333145627,1721887840232,-501.99856816,0.00013698,2]
[333145629,1721887840241,-500.0,0.00013698,2]
[333145631,1721887840250,-500.0,0.00013698,2]
[333145633,1721887840260,-500.0,0.00013698,2]
[333145635,1721887840269,-500.0,0.00013698,2]
[333145637,1721887840278,-532.38707571,0.00013698,2]
[333145639,1721887840288,-500.0,0.00013698,2]
[333145641,1721887840298,-500.0,0.00013698,2]
[333145643,1721887840308,-500.0,0.00013698,2]
[333145645,1721887840317,-500.0,0.00013698,2]
[333145647,1721887840327,-500.0,0.00013698,2]
[333145649,1721887840337,-213.47131,0.00013698,2]
[333145651,1721887840346,-213.47131,0.00013698,2]
[333145653,1721887840356,-500.82066488,0.00013698,2]
[333145655,1721887840365,-500.0,0.00013698,2]
[333145657,1721887840374,-500.0,0.00013698,2]
[333145659,1721887840384,-500.0,0.00013698,2]
[333145661,1721887840393,-500.0,0.00013698,2]
[333145662,1721887840403,-1373.18,0.00013698,2]
[333145663,1721887840412,-500.0,0.00013698,2]
[333145664,1721887840422,-500.0,0.00013698,2]
[333145665,1721887840431,-500.0,0.00013698,2]
[333145666,1721887840440,-405.73138549,0.00013698,2]
[333145667,1721887840450,-500.0,0.00013698,2]
[333145668,1721887840459,-500.0,0.00013698,2]
[333145669,1721887840468,-543.42,0.00013698,2]
[333145670,1721887840477,-1428.96,0.00013698,2]
[333145671,1721887840487,-500.0,0.00013698,2]
[333145672,1721887840495,-542.25079484,0.00013698,2]
[333145673,1721887840505,-500.0,0.00013698,2]
[333145674,1721887840514,-500.0,0.00013698,2]
[333145675,1721887840523,-500.0,0.00013698,2]
[333145676,1721887840533,-500.0,0.00013698,2]
[333145677,1721887840542,-735.07,0.00013698,2]
[333145678,1721887840552,-500.0,0.00013698,2]
[333145679,1721887840561,-500.0,0.00013698,2]
[333145680,1721887840571,-500.0,0.00013698,2]
[333145681,1721887840580,-500.0,0.00013698,2]
[333145682,1721887840589,-500.0,0.00013698,2]
[333145683,1721887840598,-500.0,0.00013698,2]
[333145684,1721887840607,-532.75,0.00013698,2]
[333145685,1721887840616,-500.0,0.00013698,2]
[333145686,1721887840626,-500.0,0.00013698,2]
[333145687,1721887840635,-500.0,0.00013698,2]
[333145689,1721887840645,-561.78,0.00013698,2]
[333145691,1721887840655,-1898.38,0.00013698,2]
[333145693,1721887840664,-500.0,0.00013698,2]
[333145695,1721887840674,-500.0,0.00013698,2]
[333145697,1721887840683,-500.0,0.00013698,2]
[333145699,1721887840692,-500.0,0.00013698,2]
[333145701,1721887840702,-500.0,0.00013698,2]
[333145703,1721887840711,-500.0,0.00013698,2]
[333145705,1721887840721,-500.0,0.00013698,2]
[333145707,1721887840730,-528.73127813,0.00013698,2]
[333145709,1721887840740,-2600.45,0.00013698,2]
[333145711,1721887840749,-500.0,0.00013698,2]
[333145713,1721887840759,-333.85852225,0.00013698,2]
[333145715,1721887840768,-500.0,0.00013698,2]
[333145717,1721887840777,-500.0,0.00013698,2]
[333145719,1721887840786,-500.0,0.00013698,2]
[333145721,1721887840796,-505.91353389,0.00013698,2]
[333145723,1721887840806,-500.0,0.00013698,2]
[333145725,1721887840815,-512.48,0.00013698,2]
[333145727,1721887840825,-500.0,0.00013698,2]
[333145729,1721887840836,-500.0,0.00013698,2]
[333145731,1721887840845,-511.07937043,0.00013698,2]
[333145733,1721887840858,-500.0,0.00013698,2]
[333145735,1721887840867,-500.0,0.00013698,2]
[333145737,1721887840877,-1170.57,0.00013698,2]
[333145738,1721887840887,-277.38506012,0.00013698,2]
[333145740,1721887840897,-500.0,0.00013698,2]
[333145742,1721887840907,-500.0,0.00013698,2]
[333145744,1721887840916,-228.98263415,0.00013698,2]
[333145746,1721887840927,-1306.13,0.00013698,2]
[333145763,1721887841085,-1281.77,0.00013698,2]
[333145765,1721887841095,-502.89702242,0.00013698,2]
[333145767,1721887841104,-500.0,0.00013698,2]
[333145769,1721887841113,-500.0,0.00013698,2]
[333145771,1721887841123,-500.0,0.00013698,2]
[333145773,1721887841132,-500.0,0.00013698,2]
[333145774,1721887841142,-500.0,0.00013698,2]
[333145776,1721887841151,-500.0,0.00013698,2]
[333145777,1721887841159,-500.0,0.00013698,2]
[333145779,1721887841168,-500.0,0.00013698,2]
[333145781,1721887841177,-500.0,0.00013698,2]
[333145783,1721887841186,-500.0,0.00013698,2]
[333145785,1721887841195,-500.0,0.00013698,2]
[333145787,1721887841204,-341.08,0.00013698,2]
[333145789,1721887841214,-984.13,0.00013698,2]
[333145791,1721887841224,-657.72,0.00013698,2]
[333145793,1721887841233,-500.0,0.00013698,2]
[333145795,1721887841243,-500.0,0.00013698,2]
[333145797,1721887841252,-501.41004709,0.00013698,2]
[333145799,1721887841262,-500.0,0.00013698,2]
[333145801,1721887841271,-500.0,0.00013698,2]
[333145803,1721887841281,-500.0,0.00013698,2]
[333145805,1721887841291,-500.0,0.00013698,2]
[333145807,1721887841300,-500.0,0.00013698,2]
[333145809,1721887841309,-1525.78,0.00013698,2]
[333145811,1721887841319,-569.12686434,0.00013698,2]
[333145813,1721887841332,-500.0,0.00013698,2]
[333145815,1721887841343,-166.58427489,0.00013698,2]
[333145817,1721887841354,-500.0,0.00013698,2]
[333145819,1721887841364,-500.0,0.00013698,2]
[333145821,1721887841374,-500.0,0.00013698,2]
[333145823,1721887841384,-500.64097119,0.00013698,2]
[333145825,1721887841395,-218.48423572,0.00013698,2]
[333145828,1721887841406,-500.0,0.00013698,2]
[333145830,1721887841417,-500.0,0.00013698,2]
[333145832,1721887841427,-500.0,0.00013698,2]
[333145834,1721887841437,-501.24621465,0.00013698,2]
[333145836,1721887841446,-500.0,0.00013698,2]
[333145838,1721887841456,-500.0,0.00013698,2]
[333145839,1721887841466,-652.75,0.00013698,2]
[333145841,1721887841475,-500.0,0.00013698,2]
[333145842,1721887841484,-500.0,0.00013698,2]
[333145843,1721887841493,-502.25901746,0.00013698,2]
[333145844,1721887841503,-500.0,0.00013698,2]
[333145845,1721887841512,-1624.8,0.00013698,2]
[333145846,1721887841524,-500.0,0.00013698,2]
[333145847,1721887841535,-500.0,0.00013698,2]
[333145848,1721887841546,-500.0,0.00013698,2]
[333145849,1721887841557,-500.0,0.00013698,2]
[333145850,1721887841567,-500.0,0.00013698,2]
[333145851,1721887841577,-504.31393444,0.00013698,2]
[333145852,1721887841589,-500.0,0.00013698,2]
[333145853,1721887841600,-1002.74,0.00013698,2]
[333145854,1721887841612,-500.0,0.00013698,2]
[333145855,1721887841622,-500.0,0.00013698,2]
[333145856,1721887841631,-740.43,0.00013698,2]
[333145857,1721887841641,-505.65927812,0.00013698,2]
[333145858,1721887841651,-500.0,0.00013698,2]
[333145859,1721887841661,-500.0,0.00013698,2]
[333145860,1721887841674,-500.0,0.00013698,2]
[333145861,1721887841684,-500.0,0.00013698,2]
[333145862,1721887841694,-667.4,0.00013698,2]
[333145863,1721887841703,-500.0,0.00013698,2]
[333145864,1721887841712,-924.08,0.00013698,2]
[333145865,1721887841721,-500.0,0.00013698,2]
[333145866,1721887841730,-500.0,0.00013698,2]
[333145867,1721887841740,-500.0,0.00013698,2]
[333145868,1721887841749,-332.21466352,0.00013698,2]
[333145869,1721887841758,-500.0,0.00013698,2]
[333145870,1721887841767,-500.0,0.00013698,2]
[333145871,1721887841777,-1565.3,0.00013698,2]
[333145872,1721887841786,-1720.07,0.00013698,2]
[333145873,1721887841796,-500.0,0.00013698,2]
[333145874,1721887841805,-500.0,0.00013698,2]
[333145875,1721887841814,-500.0,0.00013698,2]
[333145876,1721887841823,-501.70296223,0.00013698,2]
[333145877,1721887841833,-502.19466042,0.00013698,2]
[333145878,1721887841843,-500.0,0.00013698,2]
[333145879,1721887841857,-501.8751649,0.00013698,2]
[333145880,1721887841867,-500.0,0.00013698,2]
[333145881,1721887841876,-501.96862876,0.00013698,2]
[333145882,1721887841885,-500.0,0.00013698,2]
[333145883,1721887841895,-1466.93,0.00013698,2]
[333145884,1721887841906,-505.14755196,0.00013698,2]
[333145885,1721887841915,-500.0,0.00013698,2]
[333145886,1721887841924,-500.0,0.00013698,2]
[333145887,1721887841935,-500.0,0.00013698,2]
[333145888,1721887841944,-722.54,0.00013698,2]
[333145889,1721887841954,-504.23524958,0.00013698,2]
[333145890,1721887841964,-500.0,0.00013698,2]
[333145891,1721887841975,-500.0,0.00013698,2]
[333145892,1721887841984,-500.0,0.00013698,2]
[333145893,1721887841993,-500.0,0.00013698,2]
[333145894,1721887842002,-500.0,0.00013698,2]
[333145896,1721887842012,-500.0,0.00013698,2]
[333145898,1721887842021,-500.0,0.00013698,2]
[333145900,1721887842030,-572.83,0.00013698,2]
[333145902,1721887842040,-500.0,0.00013698,2]
[333145904,1721887842050,-665.79,0.00013698,2]
[333145906,1721887842059,-500.0,0.00013698,2]
[333145908,1721887842068,-503.21592375,0.00013698,2]
[333145910,1721887842079,-151.0,0.00013698,2]
[333145912,1721887842088,-184.38103629,0.00013698,2]
[333145914,1721887842098,-1200.99,0.00013698,2]
[333145916,1721887842107,-569.78,0.00013698,2]
[333145918,1721887842117,-1581.88,0.00013698,2]
[333145920,1721887842127,-500.0,0.00013698,2]
[333145922,1721887842136,-500.0,0.00013698,2]
[333145924,1721887842146,-505.28780078,0.00013698,2]
[333145926,1721887842155,-452.10880917,0.00013698,2]
[333145928,1721887842164,-500.0,0.00013698,2]
[333145930,1721887842174,-500.0,0.00013698,2]
[333145932,1721887842183,-501.60133166,0.00013698,2]
[333145934,1721887842192,-500.0,0.00013698,2]
[333145936,1721887842202,-500.0,0.00013698,2]
[333145938,1721887842211,-500.0,0.00013698,2]
[333145940,1721887842221,-500.0,0.00013698,2]
[333145942,1721887842230,-500.0,0.00013698,2]
[333145944,1721887842239,-500.0,0.00013698,2]
[333145946,1721887842249,-500.0,0.00013698,2]
[333145948,1721887842258,-500.0,0.00013698,2]
[333145950,1721887842268,-500.73041792,0.00013698,2]
[333145952,1721887842277,-500.0,0.00013698,2]
[333145954,1721887842287,-500.0,0.00013698,2]
[333145956,1721887842297,-911.27,0.00013698,2]
[333145957,1721887842306,-1842.35,0.00013698,2]
[333145959,1721887842315,-151.0,0.00013698,2]
[333145961,1721887842325,-151.0,0.00013698,2]
[333145963,1721887842337,-1824.81,0.00013698,2]
[333145965,1721887842347,-500.0,0.00013698,2]
[333145966,1721887842358,-242.54899656,0.00013698,2]
[333145967,1721887842368,-500.0,0.00013698,2]
[333145968,1721887842377,-500.0,0.00013698,2]
[333145970,1721887842386,-500.0,0.00013698,2]
[333145972,1721887842395,-500.0,0.00013698,2]
[333145974,1721887842404,-500.0,0.00013698,2]
[333145976,1721887842413,-500.0,0.00013698,2]
[333145978,1721887842423,-638.3,0.00013698,2]
[333145980,1721887842432,-500.0,0.00013698,2]
[333145982,1721887842441,-151.0,0.00013698,2]
[333145984,1721887842450,-151.0,0.00013698,2]
[333145986,1721887842459,-500.80552169,0.00013698,2]
[333145988,1721887842469,-500.0,0.00013698,2]
[333145990,1721887842478,-815.74,0.00013698,2]
[333145992,1721887842488,-500.0,0.00013698,2]
[333145994,1721887842501,-500.0,0.00013698,2]
[333145996,1721887842511,-500.0,0.00013698,2]
[333145998,1721887842520,-500.0,0.00013698,2]
[333146000,1721887842530,-500.0,0.00013698,2]
[333146002,1721887842539,-500.0,0.00013698,2]
[333146004,1721887842549,-500.0,0.00013698,2]
[333146006,1721887842558,-500.0,0.00013698,2]
[333146008,1721887842568,-500.0,0.00013698,2]
[333146010,1721887842577,-1836.92,0.00013698,2]